bitfinex/quotes_SOLUSD_20250210
["timestamp","ask_amount","ask_price","bid_price","bid_amount"]
[1739198734967,0.03,205.33,205.29,29.64091272]
[1739198735498,0.03,205.33,205.31,29.64091272]
[1739198735702,0.03,205.33,205.32,29.64091272]
[1739198736298,0.03,205.33,205.32,43.05276125]
[1739198736481,0.03,205.33,205.32,44.69786125]
[1739198740491,0.03,205.33,205.31,29.64091272]
[1739198740681,0.03,205.33,205.27,6.0882]
[1739198740682,0.03,205.33,205.3,29.64091272]
[1739198740881,0.03,205.33,205.32,49.64091272]
[1739198741386,0.03,205.33,205.32,63.05276125]
[1739198742295,0.03,205.33,205.32,29.64091272]
[1739198742602,0.03,205.33,205.31,29.64091272]
[1739198742793,0.03,205.33,205.3,29.64091272]
[1739198743099,0.03,205.33,205.32,29.64091272]
[1739198743497,0.03,205.33,205.32,43.05276125]
[1739198744084,0.03,205.33,205.31,29.64091272]
[1739198744279,0.03,205.33,205.29,29.64091272]
[1739198744479,0.03,205.33,205.3,29.64091272]
[1739198745197,0.03,205.33,205.31,43.05276125]
[1739198745425,0.03,205.33,205.32,43.05276125]
[1739198746091,0.03,205.4,205.36,20.0]
[1739198746305,0.03,205.4,205.39,29.64091272]
[1739198746675,0.03,205.4,205.36,29.64091272]
[1739198746880,0.03,205.4,205.34,29.64091272]
[1739198747095,29.67091272,205.4,205.33,29.64091272]
[1739198747898,29.64091272,205.37,205.3,29.64091272]
[1739198748408,29.64091272,205.37,205.29,29.64091272]
[1739198748702,0.91290961,205.39,205.26,29.64091272]
[1739198748703,29.64091272,205.33,205.26,29.64091272]
[1739198748887,29.64091272,205.32,205.25,29.64091272]
[1739198749084,29.64091272,205.33,205.26,43.05276125]
[1739198749402,29.64091272,205.38,205.31,43.05276125]
[1739198749794,0.03,205.33,205.31,43.05276125]
[1739198749981,0.03,205.33,205.29,29.64091272]
[1739198750188,0.03,205.33,205.28,29.64091272]
[1739198750382,0.03,205.33,205.27,29.64091272]
[1739198750599,0.03,205.33,205.26,29.64091272]
[1739198750790,0.03,205.33,205.25,20.0]
[1739198750791,0.03,205.33,205.29,29.64091272]
[1739198750998,0.03,205.33,205.32,29.64091272]
[1739198751202,0.03,205.33,205.25,29.64091272]
[1739198751397,29.64091272,205.31,205.24,0.063]
[1739198751593,0.03,205.33,205.26,13.41184853]
[1739198751800,0.03,205.33,205.29,18.23877934]
[1739198752309,0.03,205.33,205.26,13.41184853]
[1739198752888,18.26877934,205.33,205.26,31.65062787]
[1739198753094,0.03,205.33,205.26,31.65062787]
[1739198753795,0.03,205.33,205.27,18.23877934]
[1739198754317,0.03,205.33,205.28,18.23877934]
[1739198755113,0.03,205.33,205.27,18.23877934]
[1739198755490,18.23877934,205.32,205.25,18.23877934]
[1739198755789,18.23877934,205.27,205.24,0.063]
[1739198756007,18.23877934,205.26,205.24,0.063]
[1739198756201,18.23877934,205.28,205.24,0.063]
[1739198756405,18.23877934,205.31,205.24,18.30177934]
[1739198756799,18.23877934,205.29,205.24,0.063]
[1739198757091,18.23877934,205.28,205.24,0.063]
[1739198757305,18.23877934,205.27,205.24,0.063]
[1739198758289,18.23877934,205.28,205.24,0.063]
[1739198759115,18.23877934,205.3,205.24,0.063]
[1739198759315,18.23877934,205.29,205.24,0.063]
[1739198759505,18.23877934,205.28,205.24,0.063]
[1739198759714,18.23877934,205.27,205.24,0.063]
[1739198759926,18.23877934,205.25,205.24,0.063]
[1739198760409,19.15250144,205.25,205.24,0.063]
[1739198760605,18.23877934,205.25,205.24,0.063]
[1739198760929,24.77617934,205.25,205.24,0.063]
[1739198761096,25.69002018,205.25,205.24,0.063]
[1739198761512,30.56212018,205.25,205.24,0.063]
[1739198763120,1.0,205.24,205.23,0.063]
[1739198763291,19.23877934,205.24,205.11,0.063]
[1739198763610,18.23877934,205.15,205.11,0.063]
[1739198764009,19.15284344,205.14,205.11,0.063]
[1739198764317,0.91414648,205.21,205.11,0.063]
[1739198764527,18.23877934,205.23,205.16,18.23877934]
[1739198764701,19.15254047,205.23,205.16,18.23877934]
[1739198764909,18.23877934,205.22,205.15,18.23877934]
[1739198765214,0.91376113,205.23,205.11,13.47484853]
[1739198765215,18.23877934,205.18,205.11,18.30177934]
[1739198765417,19.1527328,205.17,205.11,0.063]
[1739198765618,0.91394018,205.24,205.16,18.23877934]
[1739198765840,24.77617934,205.25,205.17,18.23877934]
[1739198765996,18.23877934,205.24,205.17,18.23877934]
[1739198766697,18.23877934,205.19,205.12,18.23877934]
[1739198766901,18.23877934,205.17,205.11,0.063]
[1739198767106,18.23877934,205.2,205.13,18.23877934]
[1739198767303,24.77617934,205.25,205.18,18.23877934]
[1739198767518,8.1529,205.3,205.16,1.5462]
[1739198767696,6.5374,205.3,205.23,18.23877934]
[1739198768103,6.5374,205.3,205.24,18.23877934]
[1739198768310,18.23877934,205.32,205.25,18.23877934]
[1739198768625,18.26877934,205.33,205.26,18.23877934]
[1739198768830,0.03,205.33,205.27,18.23877934]
[1739198769140,18.26877934,205.33,205.26,31.65062787]
[1739198769308,0.03,205.33,205.26,18.23877934]
[1739198769505,0.03,205.33,205.28,18.23877934]
[1739198769718,0.03,205.33,205.3,18.23877934]
[1739198770330,0.03,205.33,205.3,31.65062787]
[1739198771123,0.03,205.33,205.3,13.41184853]
[1739198771508,0.03,205.33,205.29,18.23877934]
[1739198771935,0.03,205.33,205.28,18.23877934]
[1739198772141,0.03,205.33,205.29,18.23877934]
[1739198772321,0.03,205.33,205.3,18.23877934]
[1739198772627,0.03,205.33,205.31,18.23877934]
[1739198772828,0.03,205.33,205.29,18.23877934]
[1739198773533,0.03,205.33,205.31,18.23877934]
[1739198773826,0.03,205.33,205.3,18.23877934]
[1739198774911,0.03,205.33,205.32,18.23877934]
[1739198775142,0.03,205.33,205.32,31.65062787]
[1739198775509,0.03,205.4,205.35,20.0]
[1739198775813,0.03,205.4,205.39,31.65062787]
[1739198776029,0.03,205.4,205.38,18.23877934]
[1739198776229,0.03,205.4,205.35,20.0]
[1739198776230,0.03,205.4,205.39,18.23877934]
[1739198776440,0.03,205.4,205.39,31.65062787]
[1739198777243,0.03,205.4,205.39,33.15572787]
[1739198777739,0.063,205.47,205.42,20.0]
[1739198777914,0.063,205.47,205.46,31.65062787]
[1739198778737,0.063,205.47,205.44,18.23877934]
[1739198779324,0.063,205.47,205.46,31.65062787]
[1739198779928,0.063,205.47,205.42,18.23877934]
[1739198780127,0.063,205.47,205.41,18.23877934]
[1739198780341,0.063,205.47,205.44,18.23877934]
[1739198780521,0.063,205.47,205.46,18.23877934]
[1739198780726,0.063,205.47,205.46,31.65062787]
[1739198781417,0.063,205.47,205.46,18.23877934]
[1739198781620,0.063,205.47,205.43,18.23877934]
[1739198782260,18.30177934,205.47,205.4,18.23877934]
[1739198782548,18.23877934,205.45,205.38,18.23877934]
[1739198783047,19.15143451,205.46,205.38,18.23877934]
[1739198783261,18.23877934,205.46,205.39,18.23877934]
[1739198783543,18.30177934,205.47,205.39,18.23877934]
[1739198783848,4.8671,205.46,205.39,18.23877934]
[1739198784044,18.30177934,205.47,205.39,18.23877934]
[1739198784346,0.063,205.47,205.39,13.41184853]
[1739198784547,0.063,205.47,205.46,18.23877934]
[1739198784729,0.063,205.47,205.46,31.65062787]
[1739198785620,0.063,205.47,205.44,18.23877934]
[1739198785840,0.063,205.47,205.45,13.41184853]
[1739198786036,0.063,205.47,205.45,18.23877934]
[1739198786352,0.063,205.47,205.46,31.65062787]
[1739198788925,0.063,205.49,205.48,34.41184853]
[1739198789149,0.03,205.54,205.53,13.41184853]
[1739198789442,0.03,205.54,205.53,31.65062787]
[1739198791557,0.063,205.56,205.55,33.41184853]
[1739198791883,0.063,205.56,205.55,51.65062787]
[1739198792658,0.063,205.56,205.53,18.23877934]
[1739198792855,0.063,205.56,205.51,18.23877934]
[1739198793066,0.063,205.56,205.52,18.23877934]
[1739198793354,0.063,205.56,205.53,31.65062787]
[1739198793652,0.063,205.56,205.52,18.23877934]
[1739198793862,23.10367934,205.55,205.48,18.23877934]
[1739198794379,24.015961,205.55,205.48,18.23877934]
[1739198794664,18.23877934,205.53,205.46,18.23877934]
[1739198794956,18.23877934,205.51,205.44,18.23877934]
[1739198795526,18.23877934,205.49,205.41,18.23877934]
[1739198795760,18.23877934,205.48,205.4,18.23877934]
[1739198796059,23.10587934,205.46,205.39,18.23877934]
[1739198796258,4.8671,205.46,205.4,13.41184853]
[1739198796563,4.8671,205.46,205.4,31.65062787]
[1739198796854,4.8671,205.46,205.4,13.41184853]
[1739198797068,18.23877934,205.42,205.38,0.063]
[1739198797230,18.23877934,205.41,205.38,0.063]
[1739198797557,18.23877934,205.44,205.38,0.063]
[1739198797756,19.15143109,205.46,205.39,18.23877934]
[1739198797960,24.01863109,205.46,205.38,31.71362787]
[1739198798188,18.23877934,205.44,205.38,13.47484853]
[1739198798981,18.23877934,205.45,205.38,13.47484853]
[1739198799183,18.23877934,205.44,205.38,13.47484853]
[1739198799373,18.23877934,205.44,205.38,0.063]
[1739198799544,18.23877934,205.39,205.38,0.063]
[1739198799944,23.10747934,205.39,205.38,0.063]
[1739198801843,23.10747934,205.39,205.23,0.063]
[1739198801844,2.0,205.38,205.23,0.063]
[1739198802048,18.23877934,205.28,205.23,0.063]
[1739198802657,1.0,205.36,205.23,0.063]
[1739198802658,18.23877934,205.27,205.23,0.063]
[1739198802987,18.23877934,205.24,205.23,0.063]
[1739198804089,24.02482343,205.24,205.23,0.063]
[1739198806087,18.23877934,205.34,205.26,20.0]
[1739198806260,19.15214255,205.33,205.26,20.0]
[1739198806583,18.23877934,205.32,205.24,18.23877934]
[1739198806779,0.9133932,205.31,205.24,18.23877934]
[1739198807356,19.15217254,205.31,205.24,18.23877934]
[1739198807978,18.23877934,205.25,205.23,0.063]
[1739198808196,19.15245128,205.24,205.23,0.063]
[1739198809051,18.23877934,205.29,205.23,0.063]
[1739198809401,0.91355504,205.28,205.23,0.063]
[1739198809587,18.23877934,205.3,205.23,0.063]
[1739198809785,0.91346679,205.29,205.24,29.65451955]
[1739198809972,0.9134536,205.3,205.24,29.65451955]
[1739198810888,0.9134536,205.3,205.23,0.063]
[1739198810889,29.65451955,205.28,205.23,0.063]
[1739198811061,0.91359795,205.27,205.23,20.063]
[1739198811259,29.65451955,205.26,205.23,0.063]
[1739198811579,0.91364151,205.25,205.23,0.063]
[1739198811959,35.43942205,205.29,205.23,0.063]
[1739198813490,29.65451955,205.28,205.23,0.063]
[1739198813673,29.65451955,205.25,205.23,0.063]
[1739198813873,0.913795,205.24,205.23,0.063]
[1739198814366,0.91379645,205.28,205.23,0.063]
[1739198814774,30.568316,205.28,205.23,0.063]
[1739198815386,4.8716,205.27,205.23,0.063]
[1739198815684,0.91366994,205.26,205.23,0.063]
[1739198816291,30.56818949,205.26,205.23,0.063]
[1739198816918,0.91366994,205.26,205.23,0.063]
[1739198817393,5.78566994,205.26,205.23,0.063]
[1739198817574,29.65451955,205.24,205.23,0.063]
[1739198817757,0.91392822,205.24,205.23,0.063]
[1739198819400,5.78526969,205.27,205.23,0.063]
[1739198820087,35.43978924,205.27,205.23,0.063]
[1739198820262,29.65451955,205.26,205.23,0.063]
[1739198820465,0.91379962,205.25,205.23,0.063]
[1739198820869,29.65451955,205.24,205.23,0.063]
[1739198821176,45.06636808,205.24,205.23,0.0001]
[1739198821376,30.65451955,205.24,205.23,0.0001]
[1739198821596,35.44076499,205.24,205.23,0.0001]
[1739198822096,30.56846499,205.24,205.23,0.0001]
[1739198822274,0.91394544,205.24,205.23,0.0001]
[1739198822472,0.91382717,205.26,205.23,0.0001]
[1739198822699,0.91366093,205.29,205.24,29.65451955]
[1739198822891,0.91366093,205.29,205.25,29.65451955]
[1739198823095,5.78476093,205.29,205.23,29.65461955]
[1739198823397,0.91355365,205.34,205.28,29.65451955]
[1739198823900,0.91355365,205.34,205.23,0.0001]
[1739198823901,29.65451955,205.31,205.24,29.65451955]
[1739198824082,5.78355365,205.34,205.23,0.0001]
[1739198824083,30.56808943,205.3,205.23,29.65461955]
[1739198824286,1.91356988,205.3,205.23,0.0001]
[1739198824485,29.65451955,205.24,205.23,0.0001]
[1739198825292,30.56846631,205.24,205.23,0.0001]
[1739198825689,0.91394676,205.24,205.23,0.0001]
[1739198825876,35.44076631,205.24,205.23,0.0001]
[1739198826781,55.42511484,205.24,205.23,0.0001]
[1739198826976,1.0,205.18,205.17,0.063]
[1739198827179,30.56884866,205.18,205.17,0.063]
[1739198827379,0.91404422,205.23,205.17,0.063]
[1739198828098,0.91378349,205.26,205.17,0.063]
[1739198828301,0.91369927,205.27,205.19,20.0]
[1739198828504,0.9135427,205.31,205.19,20.0]
[1739198828679,29.65451955,205.28,205.2,29.65451955]
[1739198828881,29.65451955,205.25,205.18,29.65451955]
[1739198829082,30.5683462,205.24,205.17,29.71751955]
[1739198829279,29.65451955,205.23,205.17,0.063]
[1739198829487,0.91384381,205.22,205.17,0.063]
[1739198829801,29.65451955,205.21,205.17,0.063]
[1739198830012,29.65451955,205.18,205.17,0.063]
[1739198830504,30.65451955,205.18,205.17,0.063]
[1739198830811,44.98055692,205.18,205.17,0.063]
[1739198831198,29.65451955,205.12,205.11,0.063]
[1739198831717,34.52961955,205.12,205.11,0.063]
[1739198831893,35.4440914,205.12,205.11,0.063]
[1739198832213,35.400087,205.12,205.11,0.063]
[1739198832406,55.38443553,205.12,205.11,0.063]
[1739198832583,41.972587,205.12,205.11,0.063]
[1739198832894,30.524987,205.12,205.11,0.063]
[1739198833279,30.524987,205.12,205.09,0.063]
[1739198833280,35.400187,205.12,205.09,0.0490623]
[1739198833605,29.65451955,205.1,205.09,0.0490623]
[1739198833904,30.56892872,205.1,205.09,0.0490623]
[1739198835589,30.56892872,205.1,205.06,0.03]
[1739198835590,34.41184853,205.07,205.06,0.0001]
[1739198835802,106.08458802,205.07,205.06,0.0001]
[1739198836006,1.0,205.05,205.03,0.063]
[1739198836312,60.22402543,205.04,205.03,0.063]
[1739198836612,60.22402543,205.04,205.0,0.063]
[1739198836613,14.41184853,205.03,205.02,0.0001]
[1739198836818,44.06636808,205.03,205.02,0.0001]
[1739198837381,44.06636808,205.01,205.0,0.0001]
[1739198837585,44.98155249,205.01,205.0,0.0001]
[1739198837808,49.85935249,205.01,205.0,0.0001]
[1739198838106,35.44750396,205.01,205.0,0.0001]
[1739198838512,49.85935249,205.01,205.0,0.0001]
[1739198838812,1.0,204.97,204.9,0.063]
[1739198839001,29.65451955,204.93,204.9,0.063]
[1739198839319,0.91511428,204.92,204.9,0.063]
[1739198839882,30.5695859,204.98,204.9,29.71751955]
[1739198840084,0.91506635,204.98,204.93,29.65451955]
[1739198840294,29.65451955,205.03,204.95,29.65451955]
[1739198840496,0.91476112,205.02,204.95,29.65451955]
[1739198840715,29.65451955,205.0,204.93,29.65451955]
[1739198840892,29.65451955,204.96,204.9,0.063]
[1739198841089,29.65451955,204.93,204.9,0.063]
[1739198841310,0.91520013,204.98,204.9,0.063]
[1739198841611,1.0,205.03,204.9,0.063]
[1739198841612,0.91497937,205.02,204.9,0.063]
[1739198841814,29.65451955,205.0,204.93,29.65451955]
[1739198842009,0.91479291,204.99,204.93,29.65451955]
[1739198842407,30.56931246,204.99,204.92,29.65451955]
[1739198842788,0.91479291,204.99,204.92,29.65451955]
[1739198842985,30.56931246,204.99,204.92,29.65451955]
[1739198843211,0.91485267,205.01,204.95,29.65451955]
[1739198843415,30.56937222,205.02,204.95,29.65451955]
[1739198843618,29.65451955,205.05,204.98,29.65451955]
[1739198843817,30.56910814,205.04,204.97,29.65451955]
[1739198844119,29.65451955,204.99,204.95,6.3605]
[1739198844308,29.65451955,204.97,204.9,36.07801955]
[1739198844514,0.91493444,204.96,204.9,36.07801955]
[1739198844705,29.65451955,204.99,204.92,29.65451955]
[1739198844901,29.65451955,205.0,204.93,29.65451955]
[1739198845108,0.91481556,204.99,204.93,29.65451955]
[1739198845407,0.91481556,204.99,204.92,29.65451955]
[1739198845721,29.65451955,204.98,204.91,29.65451955]
[1739198846423,29.65451955,204.96,204.9,6.4235]
[1739198846616,29.65451955,204.95,204.9,6.4235]
[1739198846821,29.65451955,204.97,204.9,36.07801955]
[1739198847117,0.91491766,204.96,204.9,36.07801955]
[1739198847300,29.65451955,204.98,204.91,29.65451955]
[1739198847503,0.91489281,204.97,204.91,29.65451955]
[1739198848029,0.91489281,204.97,204.93,29.65451955]
[1739198848197,29.65451955,205.06,204.96,29.65451955]
[1739198848537,0.9145898,205.06,205.0,29.65451955]
[1739198848698,29.65451955,205.09,205.02,29.65451955]
[1739198848904,29.65451955,205.1,205.03,29.65451955]
[1739198849099,0.91435503,205.1,205.03,29.65451955]
[1739198849306,0.91433611,205.11,205.06,29.65451955]
[1739198850017,30.56885566,205.11,205.04,29.65451955]
[1739198850222,0.91433611,205.11,205.0,29.65451955]
[1739198850406,29.65451955,205.15,205.02,29.65451955]
[1739198850407,29.65451955,205.09,205.02,29.65451955]
[1739198850607,29.65451955,205.11,205.04,29.65451955]
[1739198850842,0.91429872,205.1,205.04,29.65451955]
[1739198851128,29.65451955,205.09,205.03,20.0]
[1739198851519,29.65451955,205.06,204.99,36.01501955]
[1739198851837,29.65451955,205.08,205.0,29.65451955]
[1739198852005,29.65451955,205.06,205.02,20.0]
[1739198852202,12.1867,205.14,204.98,1.6464]
[1739198852203,29.65451955,205.04,204.98,1.6464]
[1739198852401,29.65451955,205.06,204.99,49.65451955]
[1739198852606,29.65451955,205.09,205.01,29.65451955]
[1739198852802,29.65451955,205.1,205.03,29.65451955]
[1739198853024,4.8751,205.12,204.98,1.6464]
[1739198853025,29.65451955,205.04,204.98,1.6464]
[1739198853211,29.65451955,205.02,204.98,1.6464]
[1739198854236,29.65451955,204.99,204.92,31.23491955]
[1739198854457,29.65451955,204.95,204.92,1.5804]
[1739198854737,29.65451955,204.96,204.92,21.5804]
[1739198854942,29.65451955,204.97,204.92,1.5804]
[1739198855105,29.65451955,204.93,204.9,0.063]
[1739198855308,17.0714,205.02,204.9,0.063]
[1739198855309,29.65451955,204.91,204.9,0.063]
[1739198856403,30.5697885,204.91,204.9,0.063]
[1739198856843,41.10981955,204.91,204.9,0.063]
[1739198857047,57.43716907,204.91,204.9,0.0001]
[1739198857342,56.22572054,204.91,204.74,1.5804]
[1739198857535,56.22572054,204.91,204.74,31.23491955]
[1739198857536,29.65451955,204.81,204.74,31.23491955]
[1739198857706,29.65451955,204.83,204.76,29.65451955]
[1739198857905,30.57007365,204.82,204.74,31.23491955]
[1739198858227,29.65451955,204.76,204.69,29.71751955]
[1739198858422,29.65451955,204.75,204.69,0.063]
[1739198858724,0.91579911,204.75,204.69,0.063]
[1739198858926,29.65451955,204.73,204.69,0.063]
[1739198859124,29.65451955,204.76,204.69,29.71751955]
[1739198859328,29.65451955,204.77,204.7,29.65451955]
[1739198859635,29.65451955,204.78,204.71,29.65451955]
[1739198859939,29.65451955,204.8,204.72,29.65451955]
[1739198860138,29.65451955,204.8,204.73,34.53891955]
[1739198860308,0.91565632,204.79,204.73,4.8844]
[1739198860507,29.65451955,204.78,204.71,34.53931955]
[1739198860721,29.65451955,204.76,204.69,4.9482]
[1739198860914,0.91587406,204.75,204.69,4.9482]
[1739198861109,29.65451955,204.76,204.69,34.60271955]
[1739198861309,29.65451955,204.78,204.71,29.65451955]
[1739198861614,30.57027051,204.77,204.7,29.65451955]
[1739198861828,30.57027051,204.77,204.69,4.9482]
[1739198861829,20.91575096,204.77,204.69,0.063]
[1739198862018,29.65451955,204.7,204.69,0.063]
[1739198862219,30.57076698,204.7,204.69,0.063]
[1739198862931,43.98261551,204.7,204.69,0.063]
[1739198863120,30.57076698,204.7,204.69,0.063]
[1739198863825,43.98261551,204.7,204.69,0.063]
[1739198864208,1.0,204.68,204.53,16.67364775]
[1739198864409,29.65451955,204.62,204.55,29.65451955]
[1739198864616,0.91652979,204.61,204.55,29.65451955]
[1739198864846,29.65451955,204.63,204.56,29.65451955]
[1739198865134,29.65451955,204.57,204.48,0.063]
[1739198865325,29.65451955,204.49,204.48,0.063]
[1739198866508,0.91721666,204.49,204.48,0.063]
[1739198866713,42.22,204.59,204.48,0.063]
[1739198866714,29.65451955,204.52,204.48,0.063]
[1739198866939,0.91692955,204.51,204.48,0.063]
[1739198867218,29.65451955,204.5,204.48,0.063]
[1739198867437,30.57159685,204.49,204.48,0.063]
[1739198867935,60.2261164,204.49,204.48,0.063]
[1739198868112,73.63796493,204.49,204.48,0.063]
[1739198868312,80.52816493,204.49,204.48,0.0001]
[1739198868538,13.41184853,204.46,204.31,4.8943]
[1739198868738,29.65451955,204.38,204.31,54.54881955]
[1739198869039,29.65451955,204.4,204.33,4.894]
[1739198869236,29.65451955,204.44,204.37,29.65451955]
[1739198869543,0.91734673,204.43,204.34,0.1]
[1739198869741,1400.0,204.3,204.26,4.8955]
[1739198869948,1400.0,204.3,204.22,113.59434291]
[1739198869949,0.91785942,204.29,204.22,113.59434291]
[1739198870422,29.65451955,204.26,204.22,113.59434291]
[1739198870626,31.57259902,204.26,204.22,113.59434291]
[1739198870820,1.0,204.23,204.22,80.92354291]
[1739198871024,1.0,204.21,204.01,30.65451955]
[1739198871219,29.65451955,204.1,204.01,30.65451955]
[1739198871433,4.8,204.22,204.05,29.65451955]
[1739198871434,29.65451955,204.14,204.05,29.65451955]
[1739198871628,4.8,204.22,204.02,29.65451955]
[1739198871629,0.91864584,204.13,204.02,29.65451955]
[1739198871823,29.65451955,204.08,203.98,29.65451955]
[1739198872021,29.65451955,204.1,204.02,1.0]
[1739198872236,0.91866644,204.09,204.02,29.65451955]
[1739198872426,0.91866644,204.09,203.98,1.0]
[1739198872639,0.91892495,204.14,204.05,1.0]
[1739198872844,5.81598977,204.2,204.07,1.0]
[1739198873143,0.91878977,204.2,204.11,1.0]
[1739198873361,0.918355,204.26,204.11,1.0]
[1739198873529,0.918355,204.26,204.18,29.65451955]
[1739198873729,29.65451955,204.21,204.13,1.0]
[1739198873923,29.65451955,204.21,204.1,29.65451955]
[1739198874228,30.65451955,204.27,204.09,6.0749]
[1739198874229,29.65451955,204.17,204.09,6.0749]
[1739198874553,0.91852861,204.16,204.08,31.16961955]
[1739198874739,35.53451955,204.27,204.1,29.65451955]
[1739198874740,29.65451955,204.21,204.1,29.65451955]
[1739198874929,0.91833954,204.2,204.12,29.65451955]
[1739198875125,29.65451955,204.21,204.12,29.65451955]
[1739198875326,29.65451955,204.19,204.11,20.0]
[1739198875533,29.65451955,204.17,204.08,31.16961955]
[1739198875748,29.65451955,204.15,204.08,1.5151]
[1739198875949,0.91866568,204.14,204.09,20.0]
[1739198876127,29.65451955,204.15,204.09,20.0]
[1739198876458,0.91852312,204.14,204.09,20.0]
[1739198876750,29.65451955,204.13,204.04,29.65451955]
[1739198876994,0.91875519,204.12,204.04,29.65451955]
[1739198877135,0.91864684,204.12,204.04,29.65451955]
[1739198877846,29.65451955,204.17,204.1,29.65451955]
[1739198878040,29.65451955,204.17,204.08,29.65451955]
[1739198878041,0.9186578,204.16,204.08,29.65451955]
[1739198878553,29.65451955,204.21,204.12,29.65451955]
[1739198878729,0.91849274,204.2,204.14,29.65451955]
[1739198879162,0.91849274,204.2,204.12,29.65451955]
[1739198879530,29.65451955,204.17,204.08,29.65451955]
[1739198879860,0.91870118,204.16,204.08,29.65451955]
[1739198880037,29.65451955,204.14,204.06,29.65451955]
[1739198880223,0.91886825,204.13,204.06,29.65451955]
[1739198880428,29.65451955,204.12,204.04,29.65451955]
[1739198880625,0.91891622,204.17,204.1,29.65451955]
[1739198880837,0.91855089,204.21,204.16,29.65451955]
[1739198881036,0.91828368,204.2,204.16,29.65451955]
[1739198881239,0.91842197,204.23,204.18,29.65451955]
[1739198881441,29.65451955,204.24,204.16,29.65451955]
[1739198881664,0.91837244,204.23,204.16,29.65451955]
[1739198881846,0.91821046,204.29,204.22,29.65451955]
[1739198882557,29.65451955,204.28,204.2,29.65451955]
[1739198882743,0.9181386,204.27,204.2,34.55151955]
[1739198882943,0.9181386,204.27,204.22,29.65451955]
[1739198883148,29.65451955,204.26,204.18,29.65451955]
[1739198883466,29.65451955,204.22,204.14,29.65451955]
[1739198883648,0.91851997,204.21,204.16,29.65451955]
[1739198883959,0.91839156,204.23,204.2,29.65451955]
[1739198884263,0.91839156,204.23,204.1,14.41184853]
[1739198884264,0.91817495,204.28,204.22,29.65451955]
[1739198884449,1400.0,204.3,204.27,29.65451955]
[1739198884647,1400.0,204.3,204.29,29.65451955]
[1739198885555,1375.0578,204.3,204.29,29.65451955]
[1739198885766,1348.4519,204.3,204.29,29.65451955]
[1739198886445,1348.4519,204.3,204.28,29.65451955]
[1739198886981,0.91789484,204.29,204.25,29.65451955]
[1739198887147,29.65451955,204.27,204.2,29.65451955]
[1739198887348,0.91822887,204.26,204.2,29.65451955]
[1739198889049,0.91817353,204.25,204.21,29.65451955]
[1739198889242,29.65451955,204.26,204.18,29.65451955]
[1739198889445,0.91828085,204.25,204.18,29.65451955]
[1739198889878,0.91828085,204.25,204.19,29.65451955]
[1739198890079,0.91828085,204.25,204.2,29.65451955]
[1739198890376,0.91821379,204.24,204.19,29.65451955]
[1739198890546,0.91821396,204.26,204.19,29.65451955]
[1739198890747,0.91817899,204.29,204.25,29.65451955]
[1739198891150,0.91791152,204.29,204.26,29.65451955]
[1739198891878,1348.4519,204.3,204.28,29.65451955]
[1739198892060,1348.4519,204.3,204.26,29.65451955]
[1739198892250,0.9179289,204.29,204.23,29.65451955]
[1739198892450,0.9179289,204.29,204.24,29.65451955]
[1739198892981,1348.4519,204.3,204.28,29.65451955]
[1739198893281,1348.4519,204.3,204.29,29.65451955]
[1739198893455,1348.4519,204.3,204.27,29.65451955]
[1739198893653,1348.4519,204.3,204.23,29.65451955]
[1739198893654,0.91785467,204.29,204.23,29.65451955]
[1739198893871,1348.4519,204.3,204.27,29.65451955]
[1739198894059,1348.4519,204.3,204.29,29.65451955]
[1739198894578,1346.7853,204.3,204.29,29.65451955]
[1739198894750,1345.1187,204.3,204.29,44.06636808]
[1739198894955,1202.005778,204.3,204.29,44.06636808]
[1739198895163,1202.005778,204.3,204.29,29.65451955]
[1739198895548,1202.005778,204.3,204.29,30.65451955]
[1739198895866,1202.005778,204.3,204.29,45.06636808]
[1739198896178,1090.59216237,204.3,204.29,74.72088763]
[1739198896482,1065.77716609,204.3,204.29,74.72088763]
[1739198896677,943.28265629,204.3,204.29,74.72088763]
[1739198896885,943.28265629,204.3,204.29,45.06636808]
[1739198897183,812.05492437,204.3,204.29,74.72088763]
[1739198897491,672.30831132,204.3,204.29,45.06636808]
[1739198897659,643.27520237,204.3,204.29,74.72088763]
[1739198897860,629.54420237,204.3,204.29,74.72088763]